bitfinex/quotes_SOLUSD_20250621
["timestamp","ask_amount","ask_price","bid_price","bid_amount"]
[1750546555402,16.72768326,134.25,134.23,7.44965941]
[1750546555721,11.18321446,134.25,134.23,7.44965941]
[1750546556426,16.72438651,134.25,134.23,7.44965941]
[1750546556608,11.18321446,134.25,134.23,7.44965941]
[1750546557933,11.18321446,134.26,134.25,26.0]
[1750546558117,12.58321446,134.27,134.25,26.0]
[1750546558323,18.12444318,134.27,134.25,26.0]
[1750546558522,12.58321446,134.27,134.25,26.0]
[1750546558730,11.88321446,134.26,134.25,26.0]
[1750546559037,0.7,134.25,134.22,33.45045447]
[1750546559342,11.18321446,134.23,134.22,33.45045447]
[1750546560005,16.72487719,134.26,134.22,33.45045447]
[1750546560214,17.42487719,134.26,134.22,122.55045447]
[1750546560415,11.18321446,134.25,134.24,26.0]
[1750546560619,11.88321446,134.25,134.24,26.0]
[1750546561344,17.42487719,134.25,134.24,26.0]
[1750546561631,11.18321446,134.25,134.24,33.44934445]
[1750546561929,5.54166273,134.26,134.24,133.90255891]
[1750546562145,0.7,134.27,134.25,11.18321446]
[1750546562308,0.7,134.27,134.25,100.45321446]
[1750546562505,0.7,134.27,134.26,11.18321446]
[1750546562709,0.7,134.27,134.26,44.63144922]
[1750546563613,0.7,134.27,134.26,33.44823476]
[1750546563937,11.88321446,134.27,134.26,33.44823476]
[1750546564108,0.7,134.27,134.26,33.44823476]
[1750546564946,0.7,134.27,134.24,18.62336114]
[1750546564947,11.88321446,134.27,134.25,7.44860077]
[1750546565123,12.58321446,134.27,134.25,7.44860077]
[1750546566447,1.4,134.27,134.25,7.44860077]
[1750546566655,11.18321446,134.26,134.24,26.0]
[1750546566961,0.7,134.24,134.21,7.45049185]
[1750546567249,0.7,134.24,134.23,26.0]
[1750546568443,11.88321446,134.24,134.23,26.0]
[1750546568747,11.88321446,134.24,134.22,33.45033729]
[1750546569451,0.7,134.24,134.22,33.45033729]
[1750546569646,11.18321446,134.24,134.22,33.45033729]
[1750546570025,5.54273084,134.26,134.22,33.45033729]
[1750546570220,17.4259453,134.27,134.22,44.63355175]
[1750546570425,11.88321446,134.27,134.22,63.25968794]
[1750546570624,11.88321446,134.27,134.23,11.18321446]
[1750546572854,11.88321446,134.27,134.26,26.0]
[1750546574035,12.57321446,134.27,134.26,26.0]
[1750546575059,18.1159453,134.27,134.26,26.0]
[1750546575239,12.57321446,134.27,134.26,26.0]
[1750546575629,18.1159453,134.27,134.26,26.0]
[1750546575833,12.57321446,134.27,134.26,26.0]
[1750546576058,18.1159453,134.27,134.26,26.0]
[1750546576358,12.57321446,134.27,134.26,26.0]
[1750546576541,18.1159453,134.27,134.26,26.0]
[1750546576743,12.57321446,134.27,134.26,26.0]
[1750546576934,18.1159453,134.27,134.26,26.0]
[1750546577134,12.57321446,134.27,134.26,26.0]
[1750546577346,18.1159453,134.27,134.26,26.0]
[1750546578050,12.57321446,134.27,134.26,26.0]
[1750546578252,18.1159453,134.27,134.26,26.0]
[1750546578951,12.57321446,134.27,134.26,26.0]
[1750546579359,18.1159453,134.27,134.26,26.0]
[1750546584993,17.4259453,134.27,134.26,26.0]
[1750546587503,17.4259453,134.27,134.26,33.44823476]
[1750546587803,11.88321446,134.27,134.26,33.44823476]
[1750546587992,0.7,134.27,134.26,33.44823476]
[1750546589807,17.43733915,134.27,134.26,26.0]
[1750546590019,11.88321446,134.27,134.26,26.0]
[1750546590310,17.43733915,134.27,134.26,26.0]
[1750546590505,0.7,134.27,134.26,33.44823476]
[1750546591001,6.25524104,134.27,134.26,33.44823476]
[1750546591914,17.4384555,134.27,134.26,26.0]
[1750546592085,18.1284555,134.27,134.26,26.0]
[1750546592289,6.94524104,134.27,134.26,26.0]
[1750546592488,18.1284555,134.27,134.26,26.0]
[1750546599538,18.1284555,134.27,134.23,96.34]
[1750546599539,0.69,134.26,134.23,96.34]
[1750546599754,24.88613554,134.27,134.23,33.24]
[1750546599755,11.87321446,134.24,134.23,33.24]
[1750546600052,17.43778006,134.24,134.23,7.24]
[1750546600221,17.43778006,134.24,134.23,33.24]
[1750546600421,11.87321446,134.24,134.23,33.24]
[1750546601254,17.43559444,134.24,134.23,33.24]
[1750546601552,36.0852433,134.24,134.18,7.2]
[1750546601845,11.18321446,134.21,134.2,26.0]
[1750546602576,11.18321446,134.21,134.19,7.45198049]
[1750546602791,11.18321446,134.2,134.18,14.65249053]
[1750546603083,11.18321446,134.2,134.19,26.0]
[1750546603680,11.18321446,134.2,134.18,14.65249053]
[1750546604187,11.18321446,134.2,134.19,26.0]
[1750546604561,5.55542092,134.22,134.21,26.0]
[1750546604884,0.71,134.24,134.21,26.0]
[1750546604885,17.44863538,134.24,134.21,26.0]
[1750546605460,11.89321446,134.23,134.21,26.0]
[1750546605664,11.18321446,134.23,134.21,33.45076372]
[1750546605855,11.18321446,134.24,134.21,33.45076372]
[1750546607270,11.18321446,134.23,134.21,33.45076372]
[1750546607657,11.18321446,134.23,134.21,122.55076372]
[1750546608158,11.89321446,134.23,134.21,115.1]
[1750546608669,11.18321446,134.22,134.21,115.1]
[1750546609853,11.89321446,134.22,134.21,115.1]
[1750546610995,35.38676939,134.22,134.18,96.3]
[1750546611193,0.71,134.21,134.2,26.0]
[1750546611503,11.89321446,134.21,134.2,26.0]
[1750546611806,11.89321446,134.21,134.19,26.0]
[1750546611807,0.71,134.2,134.19,26.0]
[1750546612004,11.89321446,134.2,134.19,26.0]
[1750546612302,0.71,134.2,134.19,26.0]
[1750546612508,11.89321446,134.2,134.19,26.0]
[1750546614808,11.18321446,134.21,134.19,26.0]
[1750546616012,11.89321446,134.2,134.19,26.0]
[1750546621510,0.71,134.19,134.15,96.3]
[1750546621712,11.18321446,134.18,134.17,26.0]
[1750546622429,11.18321446,134.2,134.17,7.45309713]
[1750546622813,11.18321446,134.2,134.18,26.0]
[1750546623011,11.18321446,134.22,134.2,26.0]
[1750546624412,11.18321446,134.22,134.2,33.45147302]
[1750546625816,11.89321446,134.26,134.21,11.35321446]
[1750546626017,11.89321446,134.26,134.24,26.0]
[1750546626397,11.89321446,134.26,134.24,33.44923911]
[1750546626993,11.89321446,134.26,134.24,32.94923911]
[1750546627614,0.7,134.27,134.24,32.94923911]
[1750546627800,12.59321446,134.27,134.24,32.94923911]
[1750546628117,11.18321446,134.26,134.24,32.94923911]
[1750546628704,12.59321446,134.27,134.24,32.94923911]
[1750546630505,0.7,134.27,134.26,37.18321446]
[1750546631816,0.7,134.27,134.26,44.63144922]
[1750546632202,11.88321446,134.27,134.26,33.44823476]
[1750546632604,0.7,134.27,134.26,33.44823476]
[1750546636510,0.7,134.27,134.26,44.80144922]
[1750546637018,0.7,134.27,134.26,18.80144922]
[1750546637609,0.7,134.27,134.26,107.90144922]
[1750546637831,0.7,134.27,134.26,107.73144922]
[1750546639327,0.7,134.27,134.26,107.90144922]
[1750546640140,0.7,134.27,134.26,126.55109808]
[1750546641750,0.7,134.27,134.26,132.38170957]
[1750546641960,19.21561446,134.37,134.3,0.17]
[1750546642141,8.0324,134.37,134.34,26.0]
[1750546642469,8.7224,134.37,134.34,26.0]
[1750546643248,8.7224,134.37,134.35,7.44324525]
[1750546643553,11.87321446,134.36,134.35,33.44324525]
[1750546643730,0.69,134.36,134.35,33.44324525]
[1750546643929,19.90561446,134.37,134.35,33.44324525]
[1750546644655,0.69,134.36,134.35,33.44324525]
[1750546645558,0.69,134.36,134.32,26.0]
[1750546645559,0.69,134.35,134.32,26.0]
[1750546645731,11.18321446,134.33,134.32,26.0]
[1750546645931,11.87321446,134.33,134.32,26.0]
[1750546646531,0.69,134.33,134.32,26.0]
[1750546647156,0.69,134.33,134.32,33.44490768]
[1750546648870,11.18321446,134.34,134.32,33.44490768]
[1750546649370,11.87321446,134.34,134.32,33.44490768]
[1750546649874,11.18321446,134.34,134.32,33.44490768]
[1750546650573,29.83286332,134.35,134.32,33.44490768]
[1750546650774,30.52286332,134.35,134.32,33.44490768]
[1750546650974,11.87321446,134.36,134.32,44.62812214]
[1750546651274,0.69,134.36,134.32,44.62812214]
[1750546651759,11.87321446,134.36,134.32,44.62812214]
[1750546652287,11.18321446,134.36,134.32,33.44490768]
[1750546652449,11.18321446,134.34,134.32,33.44490768]
[1750546652776,11.87321446,134.33,134.32,26.0]
[1750546653482,11.18321446,134.34,134.32,33.44490768]
[1750546653778,69.97526332,134.37,134.32,44.62812214]
[1750546653946,0.69,134.39,134.37,26.0]
[1750546654151,11.87321446,134.39,134.37,26.0]
[1750546654353,11.87321446,134.39,134.37,33.44197217]
[1750546654772,11.18321446,134.38,134.37,26.0]
[1750546654976,11.87321446,134.38,134.37,26.0]
[1750546655685,11.87321446,134.38,134.37,33.44213738]
[1750546657759,0.69,134.38,134.37,33.44213738]
[1750546658285,0.69,134.38,134.37,26.0]
[1750546659590,11.87321446,134.38,134.37,26.0]
[1750546660883,11.87321446,134.38,134.35,7.44311765]
[1750546660884,11.18321446,134.38,134.34,7.44368888]
[1750546661194,0.69,134.37,134.36,26.0]
[1750546661487,18.64964886,134.38,134.36,26.0]
[1750546662490,11.18321446,134.37,134.36,26.0]
[1750546663287,11.18321446,134.38,134.36,26.0]
[1750546663485,11.18321446,134.38,134.36,33.44266066]
[1750546663989,29.83286332,134.39,134.36,33.44266066]
[1750546664290,11.18321446,134.39,134.36,33.44266066]
[1750546667367,5.5242018,134.41,134.37,0.68]
[1750546667685,11.89321446,134.4,134.36,122.54266066]
[1750546668266,0.71,134.4,134.36,122.54266066]
[1750546668470,11.89321446,134.39,134.36,122.54266066]
[1750546669478,11.18321446,134.39,134.36,122.54266066]
[1750546672196,5.5242018,134.4,134.36,122.54266066]
[1750546672501,11.18321446,134.39,134.36,122.54266066]
[1750546672995,11.18321446,134.38,134.36,115.1]
[1750546673199,11.18321446,134.38,134.37,26.0]
[1750546673404,16.70741626,134.39,134.37,26.0]
[1750546673895,5.5242018,134.38,134.37,26.0]
[1750546674094,5.5242018,134.39,134.37,26.0]
[1750546674271,16.70741626,134.41,134.39,26.0]
[1750546674478,5.5242018,134.4,134.39,26.0]
[1750546674887,5.5242018,134.41,134.39,26.0]
[1750546675203,16.70741626,134.41,134.39,26.0]
[1750546675576,5.5242018,134.41,134.39,26.0]
[1750546676695,5.5242018,134.41,134.39,33.44061152]
[1750546679194,5.5242018,134.42,134.39,34.12061152]
[1750546679395,5.5242018,134.42,134.4,0.68]
[1750546679598,16.70741626,134.43,134.4,0.68]
[1750546679791,5.5242018,134.42,134.4,0.68]
[1750546680298,5.5242018,134.41,134.39,122.54061152]
[1750546681095,11.89321446,134.4,134.39,115.1]
[1750546681296,17.43859228,134.4,134.39,89.1]
[1750546681715,16.72859228,134.4,134.39,89.1]
[1750546681902,17.43859228,134.4,134.39,89.1]
[1750546682509,0.71,134.39,134.38,26.0]
[1750546682787,17.43859228,134.39,134.38,26.0]
[1750546682995,17.43859228,134.39,134.36,7.44254534]
[1750546683198,16.72859228,134.38,134.36,33.44254534]
[1750546683513,16.73491724,134.38,134.36,33.44254534]
[1750546684409,16.7373146,134.38,134.36,33.44254534]
[1750546685193,5.55410014,134.38,134.36,33.44254534]
[1750546685517,5.55410014,134.38,134.36,34.12254534]
[1750546685703,5.55410014,134.4,134.37,37.86321446]
[1750546686018,5.55158433,134.4,134.37,37.86321446]
[1750546686815,11.89321446,134.39,134.38,26.0]
[1750546687122,17.4418864,134.39,134.38,26.0]
[1750546688116,0.71,134.38,134.37,26.0]
[1750546688315,16.7318864,134.38,134.37,26.0]
[1750546692322,17.4618864,134.38,134.37,26.0]
[1750546693027,16.7318864,134.38,134.37,26.0]
[1750546694333,17.4618864,134.38,134.37,26.0]
[1750546695929,16.7318864,134.38,134.37,26.0]
[1750546698529,5.54867194,134.38,134.37,26.0]
[1750546699647,16.7318864,134.38,134.37,26.0]
[1750546701048,17.4618864,134.38,134.37,26.0]
[1750546702950,16.7318864,134.38,134.37,26.0]
[1750546704740,5.54867194,134.38,134.37,26.0]
[1750546705054,5.54867194,134.38,134.37,34.15213738]
[1750546705245,11.18321446,134.41,134.37,133.72535184]
[1750546705457,5.54840808,134.4,134.38,0.71]
[1750546705653,5.54840808,134.39,134.38,0.71]
[1750546705853,5.54840808,134.4,134.37,122.54213738]
[1750546706035,16.73226696,134.39,134.37,122.54213738]
[1750546706240,5.5490525,134.38,134.37,122.54213738]
[1750546709073,16.73226696,134.38,134.37,115.1]
[1750546709282,43.55349938,134.38,134.37,89.1]
[1750546709451,0.73,134.36,134.31,89.1]
[1750546709645,18.64964886,134.37,134.32,26.0]
[1750546709646,11.18321446,134.33,134.32,26.0]
[1750546709846,16.73226696,134.33,134.32,26.0]
[1750546710047,17.46226696,134.33,134.29,14.50636279]
[1750546710248,16.73335655,134.32,134.29,14.50636279]
[1750546710458,7.66960033,134.35,134.32,26.0]
[1750546710654,5.55023994,134.34,134.33,26.0]
[1750546711143,16.7334544,134.34,134.32,26.0]
[1750546711344,16.73269533,134.33,134.32,26.0]
[1750546712163,16.7317055,134.33,134.32,26.0]
[1750546712552,5.54849104,134.33,134.32,33.44490768]
[1750546712754,16.7316396,134.35,134.32,33.44490768]
[1750546712991,11.18321446,134.35,134.32,34.15490768]
[1750546713973,42.46321446,134.36,134.32,34.15490768]
[1750546714179,5.55022043,134.35,134.32,34.15490768]
[1750546714374,42.46321446,134.36,134.32,34.15490768]
[1750546714657,5.5490953,134.35,134.32,34.15490768]
[1750546715174,42.46321446,134.36,134.32,34.15490768]
[1750546715787,42.46321446,134.36,134.32,44.62812214]
[1750546715959,42.46321446,134.36,134.32,45.33812214]
[1750546716158,11.18321446,134.36,134.32,45.33812214]
[1750546716360,16.73213318,134.36,134.32,134.43812214]
[1750546716575,11.18321446,134.36,134.32,134.43812214]
[1750546716948,11.18321446,134.36,134.32,133.72812214]
[1750546717148,46.80841195,134.39,134.35,26.0]
[1750546717149,39.3672,134.39,134.35,26.0]
[1750546717350,5.54930498,134.38,134.36,11.89321446]
[1750546717588,16.7335365,134.4,134.36,89.81]
[1750546717797,5.55032204,134.39,134.38,26.0]
[1750546718086,36.11318536,134.39,134.38,26.0]
[1750546719089,0.73,134.38,134.36,115.1]
[1750546719262,16.7335365,134.37,134.36,115.1]
[1750546719460,6.28032204,134.37,134.36,115.1]
[1750546719690,16.7335365,134.37,134.36,115.1]
[1750546721077,16.7335365,134.37,134.36,26.0]
[1750546722575,17.4235365,134.37,134.36,26.0]
[1750546723561,16.7335365,134.37,134.36,26.0]
[1750546725792,5.55032204,134.37,134.36,33.44269127]
[1750546726097,5.55032204,134.38,134.36,34.19269127]
[1750546726281,11.18321446,134.39,134.36,123.29269127]
[1750546726469,5.55624752,134.38,134.36,123.29269127]
[1750546726671,11.18321446,134.39,134.36,123.29269127]
[1750546726884,5.55670626,134.38,134.36,123.29269127]
[1750546727088,11.18321446,134.39,134.36,123.29269127]
[1750546727292,5.55652699,134.38,134.36,123.29269127]
[1750546727491,11.18321446,134.39,134.36,123.29269127]
[1750546727681,5.55681122,134.38,134.36,123.29269127]
[1750546727883,11.18321446,134.39,134.36,123.29269127]
[1750546728384,5.55771603,134.38,134.36,123.29269127]
[1750546728583,11.18321446,134.39,134.36,123.29269127]
[1750546728783,5.55979675,134.38,134.36,123.29269127]
[1750546728985,11.18321446,134.39,134.36,123.29269127]
[1750546729191,5.56239131,134.38,134.36,123.29269127]
[1750546729377,11.18321446,134.39,134.36,123.29269127]
[1750546729579,5.56181556,134.38,134.36,123.29269127]
[1750546729777,11.18321446,134.39,134.36,123.29269127]
[1750546729981,5.56150427,134.38,134.36,123.29269127]
[1750546730294,11.18321446,134.39,134.36,123.29269127]
[1750546730496,5.56083453,134.38,134.36,122.54269127]
[1750546730690,11.18321446,134.38,134.36,122.54269127]
[1750546730880,19.33964886,134.4,134.36,33.44269127]
[1750546731076,5.55884868,134.39,134.36,33.44269127]
[1750546731285,5.55884868,134.38,134.36,33.44269127]
[1750546731475,11.18321446,134.39,134.36,33.44269127]
[1750546731676,5.55977571,134.38,134.36,33.44269127]
[1750546731995,11.18321446,134.39,134.36,33.44269127]
[1750546732295,5.55926841,134.38,134.36,33.44269127]
[1750546732602,11.18321446,134.39,134.36,34.19269127]
[1750546732903,5.55941739,134.38,134.36,34.19269127]
[1750546733079,29.83286332,134.4,134.36,34.19269127]
[1750546733281,5.55897922,134.39,134.36,34.19269127]
[1750546733481,5.55897922,134.38,134.36,34.19269127]
[1750546733791,5.5596497,134.39,134.38,26.0]
[1750546735285,11.18321446,134.4,134.38,26.0]
[1750546735606,11.18321446,134.4,134.39,26.0]
[1750546735810,16.73935515,134.4,134.39,26.0]
[1750546735980,17.42935515,134.4,134.39,26.0]
[1750546736500,17.42935515,134.4,134.37,7.44191244]
[1750546736687,16.73935515,134.39,134.37,7.44191244]
[1750546736886,11.18321446,134.39,134.37,7.44191244]
[1750546737286,5.55633856,134.38,134.37,7.44191244]
[1750546737487,11.18321446,134.39,134.37,7.44191244]
[1750546737880,5.55882913,134.38,134.37,7.44191244]
[1750546738203,17.43204359,134.38,134.37,26.0]
[1750546740280,16.74204359,134.38,134.37,26.0]
[1750546741508,16.74204359,134.38,134.36,34.19238433]
[1750546741509,5.55882913,134.38,134.36,34.19238433]
[1750546741712,11.18321446,134.4,134.36,34.19238433]
[1750546741912,5.55172484,134.39,134.36,34.19238433]
[1750546742212,11.18321446,134.4,134.36,34.19238433]
[1750546742418,5.55143228,134.39,134.36,34.19238433]
[1750546742705,5.55117007,134.38,134.36,33.44238433]
[1750546742914,11.87321446,134.39,134.36,33.44238433]
[1750546743091,5.55132793,134.38,134.36,33.44238433]
[1750546743287,11.87321446,134.39,134.36,33.44238433]
[1750546743489,5.55122563,134.38,134.36,33.44238433]
[1750546743688,11.87321446,134.39,134.36,33.44238433]
[1750546743886,5.5511644,134.38,134.36,33.44238433]
[1750546744110,11.87321446,134.39,134.36,33.44238433]
[1750546744313,5.55107161,134.38,134.36,33.44238433]
[1750546744518,11.87321446,134.39,134.36,33.44238433]
[1750546744688,5.55111568,134.38,134.36,33.44238433]
[1750546744889,11.87321446,134.39,134.36,33.44238433]
[1750546745088,5.55127563,134.38,134.36,33.44238433]
[1750546745290,11.87321446,134.39,134.36,33.44238433]
[1750546745499,5.55121363,134.38,134.36,33.44238433]
[1750546745698,11.18321446,134.39,134.36,33.44238433]
[1750546745902,5.55129191,134.38,134.36,33.44238433]
[1750546746114,11.18321446,134.39,134.36,34.19238433]
[1750546746285,5.55110642,134.38,134.36,34.19238433]
[1750546746488,11.18321446,134.39,134.36,34.19238433]
[1750546746688,5.55104993,134.38,134.36,34.19238433]
[1750546746994,11.87321446,134.39,134.36,33.44238433]
[1750546747203,5.55566069,134.38,134.36,33.44238433]
[1750546747408,5.55566069,134.37,134.36,33.44238433]
[1750546747605,5.55566069,134.38,134.36,33.44238433]
[1750546747817,11.87321446,134.39,134.36,33.44238433]
[1750546748114,5.55873072,134.38,134.36,33.44238433]
[1750546748312,11.87321446,134.39,134.36,33.44238433]
[1750546748611,5.55939159,134.38,134.36,33.44238433]
[1750546748804,11.18321446,134.4,134.36,34.19238433]
[1750546748999,5.56098641,134.39,134.37,0.75]
[1750546749319,11.18321446,134.4,134.37,0.75]
[1750546749518,5.56217037,134.39,134.37,0.75]
[1750546749815,11.18321446,134.39,134.36,33.44238433]
[1750546749996,5.55992868,134.38,134.36,33.44238433]
[1750546750195,11.18321446,134.39,134.36,33.44238433]
[1750546750423,5.55982434,134.38,134.36,33.44238433]
[1750546750720,11.18321446,134.39,134.36,33.44238433]
[1750546751421,5.55979973,134.38,134.36,33.44238433]
[1750546751619,11.92321446,134.39,134.36,33.44238433]
[1750546751823,11.18321446,134.39,134.36,33.44238433]
[1750546753423,29.83286332,134.41,134.39,26.0]
[1750546753605,5.56413693,134.4,134.39,26.0]
[1750546754614,0.74,134.43,134.39,33.44102983]
[1750546754815,5.56318567,134.42,134.39,34.17102983]
[1750546755125,5.56318567,134.41,134.39,34.17102983]
[1750546755329,11.18321446,134.43,134.4,0.73]
[1750546755495,5.56356092,134.42,134.4,0.73]
[1750546755696,5.56356092,134.41,134.4,0.73]
[1750546755891,5.56356092,134.43,134.4,0.73]
[1750546756202,5.56356092,134.43,134.39,44.62424429]
[1750546756203,5.56356092,134.42,134.39,34.17102983]
[1750546756415,5.56356092,134.41,134.39,34.17102983]
[1750546756722,11.18321446,134.43,134.39,34.17102983]
[1750546756907,5.56077389,134.42,134.39,34.17102983]
[1750546757122,11.18321446,134.4,134.39,26.0]
[1750546757430,16.74398835,134.4,134.39,26.0]
[1750546758698,5.56077389,134.4,134.39,26.0]
[1750546759606,16.74398835,134.4,134.39,26.0]
[1750546761026,35.39363721,134.4,134.39,26.0]
[1750546766939,18.64964886,134.39,134.34,7.44335355]
[1750546767109,11.18321446,134.35,134.29,11.18321446]
[1750546767430,11.18321446,134.33,134.32,26.0]
[1750546767932,11.18321446,134.34,134.33,26.0]
[1750546768137,16.74712776,134.34,134.33,26.0]
[1750546771635,11.18321446,134.34,134.33,26.0]
[1750546771809,16.74712776,134.34,134.33,26.0]
[1750546772121,24.64232776,134.34,134.28,7.4471254]
[1750546772319,24.21356216,134.33,134.31,26.0]
[1750546772518,16.74712776,134.32,134.31,26.0]
[1750546773147,35.39677662,134.32,134.31,26.0]
[1750546773442,35.39677662,134.32,134.29,26.0]
[1750546773646,11.18321446,134.3,134.29,26.0]
[1750546774331,11.18321446,134.3,134.29,33.44657085]
[1750546774508,5.5639133,134.33,134.29,33.44657085]
[1750546774704,43.29197662,134.34,134.29,44.62978531]
[1750546775511,37.72806332,134.34,134.29,44.62978531]
[1750546775933,29.83286332,134.34,134.29,44.62978531]
[1750546776634,11.18321446,134.34,134.3,11.18321446]
[1750546777138,18.64964886,134.35,134.33,26.0]
[1750546777326,11.18321446,134.34,134.33,26.0]
[1750546777720,11.18321446,134.34,134.32,7.44478057]
[1750546777924,11.18321446,134.34,134.32,33.44478057]
[1750546778233,11.18321446,134.33,134.32,33.44478057]
[1750546778539,11.18321446,134.34,134.32,33.44478057]
[1750546778718,18.64964886,134.35,134.32,33.44478057]
[1750546778919,11.18321446,134.34,134.32,33.44478057]
[1750546781130,16.72874885,134.36,134.32,33.44478057]
[1750546781334,11.18321446,134.36,134.32,33.44478057]
[1750546781747,29.83286332,134.36,134.32,33.44478057]
[1750546786022,29.83286332,134.36,134.32,44.62799503]
[1750546787448,29.83286332,134.36,134.32,33.44478057]
[1750546788033,35.37839771,134.36,134.32,33.44478057]
[1750546788744,35.37839771,134.36,134.34,26.0]
[1750546788745,11.18321446,134.35,134.34,26.0]
[1750546799937,16.72874885,134.35,134.34,26.0]
[1750546800250,11.18321446,134.35,134.34,26.0]
[1750546800626,16.72874885,134.35,134.34,26.0]
[1750546800830,11.18321446,134.35,134.34,26.0]
[1750546801151,16.72874885,134.35,134.34,26.0]
[1750546801460,5.54553439,134.35,134.34,33.44379931]
[1750546801663,11.18321446,134.37,134.34,33.44379931]
[1750546801664,24.19338233,134.37,134.34,33.44379931]
[1750546801841,29.83286332,134.35,134.3,26.0]
[1750546802027,11.18321446,134.31,134.27,6.96]
[1750546802651,11.18321446,134.31,134.3,26.0]
[1750546802961,11.18321446,134.31,134.27,14.40768004]
[1750546803144,11.18321446,134.31,134.3,26.0]
[1750546803452,16.72694793,134.31,134.3,26.0]
[1750546803630,11.18321446,134.31,134.3,26.0]
[1750546803830,5.54373347,134.31,134.27,14.40768004]
[1750546804046,11.18321446,134.3,134.29,26.0]
[1750546806345,5.55600239,134.32,134.29,26.0]
[1750546806546,11.18321446,134.3,134.29,26.0]
[1750546808063,18.64964886,134.29,134.22,6.92]
[1750546808254,11.18321446,134.25,134.22,14.37026007]
[1750546808576,5.55749328,134.27,134.25,26.0]
[1750546808736,11.18321446,134.29,134.25,37.18321446]
[1750546809037,11.51779762,134.32,134.31,26.0]
[1750546809244,5.95968675,134.32,134.31,26.0]
[1750546809479,5.55811087,134.32,134.31,26.0]
[1750546809936,5.55811087,134.32,134.31,33.44546199]
[1750546812174,5.55811087,134.34,134.31,63.24233142]
[1750546812359,5.56322211,134.37,134.36,26.0]
[1750546813067,5.56322211,134.38,134.36,26.0]
[1750546813239,11.18321446,134.39,134.34,37.18321446]
[1750546813444,5.56161664,134.38,134.34,44.10321446]
[1750546813638,11.18321446,134.39,134.34,44.10321446]
[1750546813857,5.56170883,134.38,134.34,44.10321446]
[1750546814059,11.18321446,134.39,134.34,44.10321446]
[1750546814269,11.18321446,134.37,134.35,7.44324525]
[1750546815852,11.18321446,134.38,134.35,7.44324525]
[1750546816274,16.73992513,134.39,134.35,7.44324525]
[1750546816575,16.738655,134.41,134.38,26.0]
[1750546816755,11.18321446,134.41,134.38,26.0]
[1750546817066,16.738655,134.41,134.38,26.0]
[1750546817268,11.18321446,134.41,134.38,26.0]
[1750546817478,16.738655,134.41,134.38,26.0]
[1750546817649,11.18321446,134.41,134.38,33.44106651]
[1750546817979,16.738655,134.41,134.38,33.44106651]
[1750546818166,11.18321446,134.41,134.38,33.44106651]
[1750546818357,11.18321446,134.4,134.38,33.44106651]
[1750546819058,16.738655,134.4,134.38,33.44106651]
[1750546819451,5.55544054,134.4,134.38,33.44106651]
[1750546819660,5.55544054,134.42,134.38,33.44106651]
[1750546819868,16.738655,134.42,134.38,33.44106651]
[1750546820078,11.18321446,134.42,134.38,33.44106651]
[1750546820300,11.18321446,134.42,134.38,44.62428097]
[1750546820848,11.18321446,134.42,134.38,33.44106651]
[1750546821054,11.18321446,134.42,134.38,44.62428097]
[1750546821263,11.18321446,134.42,134.38,33.44106651]
[1750546822790,6.4301,134.43,134.38,33.44106651]
[1750546823075,11.18321446,134.4,134.38,26.0]
[1750546823249,11.18321446,134.39,134.38,26.0]
[1750546827174,5.55544054,134.42,134.38,26.0]
[1750546827175,11.18321446,134.4,134.38,33.44158356]
[1750546828172,10.68321446,134.4,134.38,33.44158356]
[1750546831365,10.18321446,134.4,134.38,33.44158356]
[1750546831676,11.18321446,134.4,134.38,33.44158356]
[1750546832767,24.2050894,134.43,134.38,33.44158356]
[1750546832768,11.18321446,134.41,134.38,33.44158356]
[1750546833888,5.55544054,134.43,134.38,63.22875694]
[1750546834200,11.18321446,134.43,134.38,63.22875694]
[1750546834868,11.18321446,134.43,134.39,11.18321446]
[1750546835265,24.2050894,134.44,134.4,7.44047619]
[1750546835496,35.38830386,134.44,134.4,7.44047619]
[1750546836192,18.64964886,134.44,134.4,7.44047619]
[1750546836496,29.83286332,134.44,134.41,26.0]
[1750546836992,6.4989,134.46,134.41,37.18321446]
[1750546837208,11.18321446,134.46,134.41,37.18321446]
[1750546837493,21.74630309,134.49,134.46,26.0]
[1750546837705,25.24671755,134.49,134.46,26.0]
[1750546838082,14.06350309,134.49,134.45,11.18321446]